Cogmind - Beta 16.1 @@@ ROGUE MODE // 2026.04.06 @ 01:10:06 Player: Ammie Result: Destroyed by G-34 Mercenary with Small Laser Performance ------------- Evolutions (0) 0 Regions Visited (1) 200 Robots Destroyed (10) 50 Value Destroyed (128) 128 Prototype IDs (2) 40 Alien Tech Used (0) 0 Bonus (0) 0 TOTAL SCORE: 418 Bonus ------- None Cogmind --------- Core Integrity 0/250 Matter 270/300 Energy 125/125 System Corruption 0% Temperature Cool (75) Movement Hovering (116) Ox1 Location -10/Materials Parts ------- > --- POWER (1) -------- Light Ion Engine > --- PROPULSION (2) --- Hover Unit Hover Unit > --- UTILITY (2) ------ Heat Sink Small Storage Unit > --- WEAPON (2) ------- Medium Laser Medium Laser > --- INVENTORY (8) ---- Light Ion Engine Hover Unit Hover Unit Hover Unit Hover Unit Light Assault Rifle Peak State ------------ > --- POWER ------------ Ion Engine > --- PROPULSION ------- Aluminum Leg Aluminum Leg > --- UTILITY ---------- Heat Sink Small Storage Unit > --- WEAPON ----------- EM Pulse Gun Assault Rifle > --- INVENTORY -------- Light Ion Engine Medium Laser Medium Laser Light Assault Rifle [Rating: 7] Favorites ----------- Power Ion Engine Engine Ion Engine Propulsion Aluminum Leg Leg Aluminum Leg Hover Unit Hover Unit Flight Unit Flight Unit Utility Small Storage Unit Device Heat Sink Storage Small Storage Unit Weapon Medium Laser Energy Gun Medium Laser Ballistic Gun Assault Rifle Build | -11 -10 ------- Run | Yrd Mat Slots Evolved . | . . Power . | . . Propulsion . | . . Utility . | . . Weapon . | . . Parts Attached 16 | 7 9 Power 3 | 2 1 Engine 3 | 2 1 Core . | . . Reactor . | . . Propulsion 6 | 2 4 Treads . | . . Leg 2 | 2 . Wheel . | . . Hover 2 | . 2 Flight 2 | . 2 Utility 3 | 1 2 Device 2 | . 2 Storage 1 | 1 . Processor . | . . Hackware . | . . Protection . | . . Artifact . | . . Weapon 4 | 2 2 Energy Gun 3 | 1 2 Energy Cannon . | . . Ballistic Gun 1 | 1 . Ballistic Cannon . | . . Launcher . | . . Special Weapon . | . . Impact Weapon . | . . Slashing Weapon . | . . Piercing Weapon . | . . Special Melee Weapon . | . . Unidentified Prototypes . | . . Parts Lost 6 | . 6 Power 1 | . 1 Propulsion 2 | . 2 Utility 1 | . 1 Weapon 2 | . 2 Highest Loss Streak 5 | . 5 To Critical Strikes . | . . Average Backups 3 | 1 4 Power . | . 1 Propulsion . | . . Utility . | . . Weapon 2 | . 2 Tool/Special . | . . Unused Backups 5 | . 5 Power . | . . Propulsion 4 | . 4 Utility . | . . Weapon 1 | . 1 Tool/Special . | . . Average Slot Usage (%) 88 | . 88 Engine 13 | . 13 Leg 15 | . 15 Hover 5 | . 5 Flight 3 | . 3 Device 8 | . 8 Storage 14 | . 14 Energy Gun 17 | . 17 Ballistic Gun 8 | . 8 Peak Build Rating 7 | 6 7 Average Rating 5 | 4 6 On Entrance 3 | . 6 Avg Prop Armor Cover (%) . | . . Naked Turns . | . . Heaviest Build 15 | 14 15 Greatest Support 20 | 20 20 Greatest Overweight (x) 4 | . 4 Average Overweight (x) . | . . Largest Inventory Capacity 8 | 8 8 Average Capacity 7 | 6 8 Most Carried 6 | 2 6 Average Carried 3 | 1 4 Final Capacity 8 | 8 8 Final Carried 6 | 2 6 Class Distribution -------------------- 100% | Mutant Dominant Class ---------------- Mutant | -10/Materials Resources | -11 -10 ----------- Run | Yrd Mat Matter Collected 377 | 221 156 Remotely . | . . Salvage Created 168 | . 168 Parts 13 | . 13 Haulers Intercepted . | . . Recyclers Shooed . | . . Parts Field Recycled . | . . Retrieved Matter . | . . Parts Self-Destructed . | . . Prevented . | . . Parts Restored . | . . Kills | -11 -10 ------- Run | Yrd Mat Combat Hostiles Destroyed 7 | . 7 Guns 7 | . 7 Classes Destroyed 3 | . 3 Operator 1 | . 1 Watcher 2 | . 2 Swarmer 7 | . 7 Best Kill Streak 5 | . 5 Combat Bots Only 5 | . 5 Max Kills in Single Turn 2 | . 2 Gunslinging 1 | . 1 Exploded . | . . Melee . | . . Uniques/NPCs Destroyed . | . . Combat | -11 -10 -------- Run | Yrd Mat Hostile Shots Fired 137 | . 137 Missed 40 | . 40 Hits 97 | . 97 Projectile 97 | . 97 Critical Strikes 1 | . 1 Damage Taken 805 | . 805 Core 258 | . 258 Absorbed by Shields . | . . Core Remaining (%) 100 | 100 . Volleys Fired 39 | . 39 Largest 2 | . 2 Hottest 100 | . 100 Shots Fired 61 | . 61 Gun 61 | . 61 Cannon . | . . Launcher . | . . Special . | . . Kinetic 27 | . 27 Thermal 24 | . 24 Explosive . | . . Electromagnetic 10 | . 10 Robot Hit Streak 6 | . 6 Robot Miss Streak 5 | . 5 Penetration Max . | . . Secondary Targets 1 | . 1 Max Gunslinging Chain 1 | . 1 Shots Hit Robots 28 | . 28 Core Hits 11 | . 11 Critical Kills . | . . Critical Parts Destroyed 1 | . 1 Critical Strikes 4 | . 4 Burn 2 | . 2 Destroy 1 | . 1 Corrupt 1 | . 1 Melee Attacks . | . . Impact . | . . Slashing . | . . Piercing . | . . Sneak Attacks . | . . Combat Hostiles . | . . Follow-up Attacks . | . . Damage Inflicted 389 | . 389 Guns 388 | . 388 Cannons . | . . Explosions . | . . Melee . | . . Ramming 1 | . 1 Kinetic 137 | . 137 Thermal 178 | . 178 Explosive . | . . Electromagnetic 73 | . 73 Impact . | . . Slashing . | . . Piercing . | . . Highest Corruption . | . . Average Corruption . | . . Corruption Purged . | . . Corruption Blocked . | . . Overload Shots . | . . Overflow Damage . | . . Projectiles . | . . Explosions . | . . Melee . | . . Knockbacks . | . . Impact . | . . Kinetic . | . . Secondary . | . . Self-Inflicted Damage . | . . Shots . | . . Rammed 1 | . 1 Targets Rammed 1 | . 1 Kicked . | . . Crushed . | . . Highest Temperature 75 | . 75 Average Temperature 32 | . 32 Received Heat Transfer 42 | . 42 Siege Activations . | . . Martial Activations . | . . Shielding Activations . | . . Robots Disrupted . | . . Combat Hostiles . | . . Robots Corrupted . | . . Combat Hostiles . | . . Parts Fried . | . . Impact Corruptions . | . . Robots Melted . | . . Combat Hostiles . | . . Parts Melted 1 | . 1 Heat Transferred 666 | . 666 Parts Sabotaged . | . . Parts Stolen . | . . Parts Stripped . | . . Power Chain Reactions . | . . Alert | -11 -10 ------- Run | Yrd Mat Maximum Alert Level . | . . Low Security (%) 100 | 100 100 Level 1 . | . . Level 2 . | . . Level 3 . | . . Level 4 . | . . Level 5 . | . . High Security . | . . Max Security . | . . Peak Influence 145 | . 145 Initial . | . . Average 46 | . 52 Influence Increases 273 | . 273 Destroy 0b10 Robot/C 140 | . 140 Destroy 0b10 Robot/NC 15 | . 15 Destroy Leader 34 | . 34 Successful Hack 9 | . 9 Disable Machine 15 | . 15 Lose Combat Pursuer 60 | . 60 Influence Decreases 190 | . 190 Time Decay 130 | . 130 Lost Part 60 | . 60 Squads Dispatched . | . . Investigation . | . . Extermination . | . . Reinforcement . | . . Assault . | . . Garrison . | . . Intercept . | . . Searches Triggered . | . . Construction Impeded . | . . Haulers Reinforced . | . . Active Scanning Responses . | . . Cargo Convoy Interrupts . | . . Stealth | -11 -10 --------- Run | Yrd Mat Distress Signals 2 | . 2 Communications Jammed . | . . Distress Signals . | . . Times Spotted 19 | . 19 Peak Tracking Total 10 | . 10 Tactical Retreats 2 | . 2 Traps | -11 -10 ------- Run | Yrd Mat Traps Triggered . | . . Indirectly . | . . Trap Hack Attempts . | . . Triggered . | . . Disarmed . | . . Reprogrammed . | . . Reused . | . . Traps Extracted . | . . Installed . | . . Triggered . | . . Machines | -11 -10 ---------- Run | Yrd Mat Machines Disabled 1 | . 1 Max in Single Turn 1 | . 1 Machines Repaired . | . . Machines Dismantled . | . . Machines Sabotaged . | . . Overloaded Fab Kills . | . . Hacking | -11 -10 --------- Run | Yrd Mat Machines Accessed 4 | . 4 Terminals 4 | . 4 Fabricators . | . . Repair Stations . | . . Recycling Units . | . . Scanalyzers . | . . Garrison Access . | . . Total Hacks 6 | . 6 Successful 5 | . 5 Failed 1 | . 1 Catastrophic . | . . Database Lockouts . | . . Manual . | . . Terminals 6 | . 6 Fabricators . | . . Repair Stations . | . . Recycling Units . | . . Scanalyzers . | . . Garrison Access . | . . Terminal Hacks 5 | . 5 Prototype ID Bank 1 | . 1 Alert Level 1 | . 1 Locate Traps 1 | . 1 Hauler Manifests 1 | . 1 Registered Components 1 | . 1 Fabricator Hacks . | . . Repair Station Hacks . | . . Recycling Unit Hacks . | . . Scanalyzer . | . . Garrison Access Hacks . | . . Unauthorized Hacks . | . . Terminals . | . . Fabricators . | . . Repair Stations . | . . Recycling Units . | . . Scanalyzers . | . . Garrison Access . | . . Data Cores Recovered 1 | . 1 Used . | . . Hacking Detections 2 | . 2 Full Trace Events . | . . Feedback Events . | . . Feedback Blocked . | . . Robot Schematics Acquired . | . . Robots Built . | . . Authchips . | . . Time . | . . Total Robot Build Rating . | . . Part Schematics Acquired . | . . Parts Built . | . . Authchips . | . . Time . | . . Total Part Build Rating . | . . Part Studies Acquired . | . . Parts Repaired . | . . Time . | . . Parts Recycled . | . . Recycled Matter . | . . Retrieved Matter . | . . Retrieved Components . | . . Parts Scanalyzed . | . . Part Schematics Acquired . | . . Parts Damaged . | . . Bothacking | -11 -10 ------------ Run | Yrd Mat Used RIF Installer . | . . Robots Hacked . | . . Non-combat . | . . Combat . | . . Robot Hacks Applied . | . . Relay Couplers Released . | . . Fabnet Peak Effective % . | . . Robots Rewired . | . . Allies Hacked . | . . Hacks Repelled . | . . Allies | -11 -10 -------- Run | Yrd Mat Total Allies . | . . Largest Group . | . . Highest-Rated Group . | . . Highest-Rated Ally . | . . Total Orders . | . . Ally Attacks . | . . Total Damage . | . . Kills . | . . Allies Corrupted . | . . Allies Melted . | . . Intel | -11 -10 ------- Run | Yrd Mat Active Infowar (turns) . | . . Robot Analysis Total . | . . Derelict Logs Recovered . | . . Drone Launches . | . . Drone Recoveries . | . . Exploration | -11 -10 ------------- Run | Yrd Mat Turns Passed 555 | 63 492 Spaces Moved 342 | 46 296 Core 12 | 4 8 Treads . | . . Legs 232 | 42 190 Wheels . | . . Hover 49 | . 49 Flight 49 | . 49 Fastest Speed 50 | 50 116 Average Speed 123 | 113 124 Slowest Speed 280 | 120 280 Overloaded Moves . | . . Propulsion Burnouts . | . . Robots Hopped . | . . Potential Cave-ins . | . . Cave-ins Triggered . | . . Exploration Rate (%) 25 | 4 47 Regions Visited 1 Branch Regions . Pre-discovered Areas . | . . Known Exits Taken . | . . Unknown Exits Taken 1 | 1 . Scrap Searched . | . . Spaces Dug . | . . Terrain Destroyed . | . . Melee . | . . Projectile . | . . AOE . | . . Terrain Rammed . | . . Walls Destroyed . | . . Machines Disabled . | . . Actions | -11 -10 --------- Run | Yrd Mat Total 406 | 53 353 Wait 1 | . 1 Move 341 | 45 296 Hop . | . . Pick Up 8 | 1 7 Fast Attach 10 | 6 4 Attach 3 | . 3 Detach . | . . Swap 3 | 1 2 Drop . | . . Fire 39 | . 39 Melee . | . . Ram 1 | . 1 Kick . | . . Crush . | . . Escape Stasis . | . . Rewire . | . . Trap . | . . Miscellaneous . | . . Route ------- -11/Scrapyard -10/Materials History --------- Turn | Location | Event 17 | -11/Scrapyard | Discovered new exit (range 15) 64 | -11/Scrapyard | Entered Materials 307 | -10/Materials | Build established: Mutant 348 | -10/Materials | Core integrity fell below 50% 362 | -10/Materials | Core integrity fell below 20% 363 | -10/Materials | Lost 5 parts (1p2n1u1w) 556 | -10/Materials | Destroyed by G-34 Mercenary with Small Laser Last Messages --------------- Map updated. >>Inventory(Components) Retrieving component inventory records... Found 5 registered component stockpiles: 50Y33CZ36P: Com. Wheel Q640AA3VDZ: Structural Scanner AQTS3UTXE8: Datajack MYGZFFKC1V: Hover Unit PK76YG6GO0: Signal Interpreter Downloaded coordinate data. 00500_ Acquired Hover Unit. 00504_ R-06 Scavenger collects Flight Unit. 00526_ Destroyed Hover Unit. 00529_ W-16 Scout destroyed. 00531_ W-16 Scout sends out distress signal. 00532_ W-16 Scout destroyed. 00533_ K-01 Serf collects debris. 00538_ G-34 Mercenary suffers critical hit (Burn). 00546_ K-01 Serf collects debris. 00551_ K-01 Serf cleans the Neutrino Reactor. Map ----- +----------------------------------------------------+ | ?????????????????????????????????????????????????? | | ?????????????????????????????????????????????????? | | ?????????????????????????????????????????????????? | | ?????????????????????????????????????????????????? | | ?????????????????????????????????????????????????? | | ?????????????????????????????????????????????????? | | ?????????????????????????????????????????????????? | | ?????????????????????????????????????????????????? | | ????????#######??????????????????????????????????? | | ????????# #?????????? ?????????????????????? | | ????????# #?????????+ ?????????????????????? | | ????????# #?????????# #????????????????????? | | ????????# #?????????# #????????????????????? | | ????????# """ #?????????# #????????????????????? | | ######### """ #?????????# #????????????????????? | | ## """ #?????????# #????????????????????? | | """"" ## #?????????# #########????????????? | | """""[## """ #?????????+ ^ ?????????????? | | """"" ## """ #?????????# ^ ^ ?????????????? | | [ [## """ #?????????# ^ ??????????????? | | ###+##### #?????????# ^ k""" ^"????????????? | | ###[########+############ """ """??????????? | | *= % """ """ +???????? | | g = #???????? | | g %* #???????? | | ########/################@ #########????????????? | | #???# #??????????# ##########???????????? | | ##### """ #??????????# %# #???????????? | | # """"" #??????????# !# " #???????????? | | "" # """"" #??????????# # T #???????????? | | "" # """"" #??????????# # """ " #???????????? | | "" # """"" #???##+##### + """ #???????????? | | # """"" ##### ^ # """ #???????????? | | "" "# """"" / # #???????????? | | "" T# ##### + #???????????? | | "" "##########???# #####+###########???????????? | | #????????????# # #??????????????? | | +##########??????# # """ ! = #??????????????? | | ## #??????# # """ ! |#??????????????? | | ## #??????# # """ #??????????/???? | | ## #?????#T # #??????????????? | | ## #?????## ##############??????????????? | | # [ #?????? ??????????????????????????? | | + #?????? ?????????????????????????? | | # #?????# ????????????????????????? | | # #?????#+#### #???????????????????????? | | # #??????????? #???????????????????????? | | !# #??????????? #???????????????????????? | | # #??????????? #???????????????????????? | | ##+######???????????? #???????????????????????? | +----------------------------------------------------+ Best States ------------- Heat Dissipation 35 Energy Generation 10 Energy Capacity 250 Matter Stores 290 Matter Capacity 300 Sight Range 16 Terrain Scan Density 10 Evasion (%) 55 Item Schematics ----------------- None Robot Schematics ------------------ None Fabricated ------------ Nothing Repaired ---------- Nothing Studied --------- None Alien Tech Used ----------------- None Achievements -------------- None Challenges ------------ None Game ------ Seed ContainmentDirectedStatue Manual? 0 Play Time 00:08:59 Cumulative 39.3 hours Start 2026.04.06 @ 00:40:24 End 2026.04.06 @ 01:10:06 Sessions 1 Manual Loads 0 Difficulty Rogue Special Mode None Game No. 69 Rogue 69 Adventurer 0 Explorer 0 Win Type - Total 0 Types 0/0/0/0/0/0/0/0/0/0 Lore% 15 Gallery% 23 Achievement% 20 Wizard Run 0 Options --------- Layout 0 ASCII 0 Keyboard 0 Movement Mouse Keybinds 0 Fullscreen 1 Font 24/Smallcaps Map View 38x25 Zoom Use 100% Tactical HUD 1 Map Filters NONE Filters NONE Steam 1 RUN: 14f1520c-4c7d-4fcc-8dd9-6b3ad3af638c